bitfinex-derivatives/quotes_BTCF0:USTF0_20240817
["timestamp","ask_amount","ask_price","bid_price","bid_amount"]
[1723897507211,0.04282251,59190.0,59189.0,0.13069001]
[1723897507521,0.03282251,59190.0,59189.0,0.13069001]
[1723897508420,0.04282251,59190.0,59189.0,0.13069001]
[1723897510415,0.03282251,59190.0,59189.0,0.13069001]
[1723897510817,0.04282251,59190.0,59189.0,0.13069001]
[1723897511419,0.04282251,59190.0,59189.0,0.16786803]
[1723897513327,0.04282251,59190.0,59189.0,0.25415581]
[1723897513710,0.04282251,59190.0,59189.0,0.16975645]
[1723897514327,0.49702251,59190.0,59189.0,0.02492459]
[1723897514622,1.17386251,59190.0,59185.0,0.06753891]
[1723897514929,0.517546,59186.0,59185.0,0.05066941]
[1723897515130,0.897546,59186.0,59185.0,0.05066941]
[1723897515316,0.897546,59186.0,59184.0,0.00025343]
[1723897516617,0.905546,59186.0,59184.0,0.00125343]
[1723897517127,0.905546,59186.0,59185.0,0.001]
[1723897517723,0.905546,59186.0,59184.0,0.00125343]
[1723897517724,0.919546,59186.0,59184.0,0.00225343]
[1723897518326,0.919546,59186.0,59185.0,0.001]
[1723897518619,0.558746,59186.0,59185.0,0.001]
[1723897518822,0.558746,59186.0,59184.0,0.00025343]
[1723897518823,1.258346,59186.0,59184.0,0.00025343]
[1723897519011,1.281346,59186.0,59185.0,0.001]
[1723897520022,0.559746,59186.0,59185.0,0.001]
[1723897520215,1.281346,59186.0,59185.0,0.001]
[1723897520416,1.267346,59186.0,59185.0,0.001]
[1723897527322,0.545746,59186.0,59185.0,0.001]
[1723897527529,1.267346,59186.0,59185.0,0.001]
[1723897527926,0.545746,59186.0,59185.0,0.001]
[1723897528327,1.267346,59186.0,59185.0,0.001]
[1723897528526,1.173946,59186.0,59185.0,0.001]
[1723897534829,0.452346,59186.0,59185.0,0.001]
[1723897535143,1.173946,59186.0,59185.0,0.001]
[1723897535434,0.452346,59186.0,59185.0,0.001]
[1723897535637,1.173946,59186.0,59185.0,0.001]
[1723897539525,0.452346,59186.0,59185.0,0.001]
[1723897539735,0.813146,59186.0,59185.0,0.001]
[1723897544435,0.813146,59186.0,59185.0,0.05166941]
[1723897544634,0.813146,59186.0,59185.0,0.001]
[1723897554146,0.452346,59186.0,59185.0,0.001]
[1723897554357,0.813146,59186.0,59185.0,0.001]
[1723897556854,0.7498,59186.0,59185.0,0.16193891]
[1723897557047,0.7498,59186.0,59185.0,0.0944]
[1723897557247,0.7498,59186.0,59185.0,0.1315833]
[1723897557449,0.7498,59186.0,59185.0,0.2262833]
[1723897559455,0.7498,59186.0,59185.0,0.1315833]
[1723897561443,0.7498,59186.0,59185.0,0.0944]
[1723897561642,0.389,59186.0,59185.0,0.0944]
[1723897561843,0.7498,59186.0,59185.0,0.0944]
[1723897562253,0.7498,59186.0,59185.0,0.16189723]
[1723897562761,0.7498,59186.0,59185.0,0.0944]
[1723897564151,0.7498,59186.0,59185.0,0.16190268]
[1723897565157,0.7498,59186.0,59185.0,0.001]
[1723897565353,0.7498,59186.0,59185.0,0.03818403]
[1723897565550,0.7498,59186.0,59185.0,0.10568988]
[1723897566466,0.7498,59186.0,59185.0,0.10569053]
[1723897567653,0.389,59186.0,59185.0,0.10569053]
[1723897567854,0.7498,59186.0,59185.0,0.10569053]
[1723897570062,0.7498,59186.0,59185.0,0.03818468]
[1723897570460,0.7498,59186.0,59185.0,0.03818421]
[1723897570847,0.7498,59186.0,59185.0,0.03818221]
[1723897571249,0.7498,59186.0,59185.0,0.07536601]
[1723897571449,0.7498,59186.0,59185.0,0.07536532]
[1723897571654,0.7498,59186.0,59185.0,0.001]
[1723897572454,0.389,59186.0,59185.0,0.001]
[1723897572649,0.7498,59186.0,59185.0,0.001]
[1723897574068,0.389,59186.0,59185.0,0.001]
[1723897574365,0.7498,59186.0,59185.0,0.001]
[1723897574867,0.389,59186.0,59185.0,0.001]
[1723897575067,0.389,59186.0,59185.0,0.03818279]
[1723897577556,0.389,59186.0,59185.0,0.07536435]
[1723897578651,0.389,59186.0,59185.0,0.07536286]
[1723897580267,0.389,59186.0,59185.0,0.07536257]
[1723897581157,0.389,59186.0,59185.0,0.0381813]
[1723897581755,0.389,59186.0,59185.0,0.07536256]
[1723897582569,0.389,59186.0,59185.0,0.075361]
[1723897586568,0.389,59186.0,59185.0,0.07536184]
[1723897588168,0.389,59186.0,59185.0,0.03818092]
[1723897588362,0.389,59186.0,59185.0,0.07536189]
[1723897588765,0.389,59186.0,59185.0,0.07536202]
[1723897590769,0.389,59186.0,59185.0,0.07536178]
[1723897591968,0.389,59186.0,59185.0,0.03818089]
[1723897592170,0.389,59186.0,59185.0,0.07536142]
[1723897593072,0.389,59186.0,59185.0,0.03818053]
[1723897593964,0.389,59186.0,59185.0,0.07536128]
[1723897594167,0.389,59186.0,59185.0,0.03818053]
[1723897594468,0.389,59186.0,59185.0,0.12258022]
[1723897594768,0.389,59186.0,59185.0,0.08539936]
[1723897594971,0.389,59186.0,59185.0,0.03818075]
[1723897596176,0.389,59186.0,59185.0,0.12258011]
[1723897597169,0.389,59186.0,59185.0,0.21409568]
[1723897597471,0.389,59186.0,59185.0,0.25127649]
[1723897598769,0.389,59186.0,59185.0,0.25127646]
[1723897599076,0.389,59186.0,59185.0,0.25127633]
[1723897599379,0.389,59186.0,59185.0,0.28845706]
[1723897602775,0.389,59186.0,59185.0,0.25127633]
[1723897602975,0.389,59186.0,59185.0,0.28845722]
[1723897603176,0.389,59186.0,59185.0,0.28846041]
[1723897604181,0.389,59186.0,59185.0,0.20406105]
[1723897606685,0.389,59186.0,59185.0,0.12969938]
[1723897606686,0.009,59186.0,59185.0,0.12969938]
[1723897606878,0.009,59186.0,59185.0,0.36947204]
[1723897607074,0.3608,59189.0,59185.0,0.36947204]
[1723897607284,0.3608,59189.0,59188.0,0.0934]
[1723897607588,0.3608,59189.0,59188.0,0.29645882]
[1723897607788,0.37062251,59190.0,59188.0,0.29645882]
[1723897607985,0.37062251,59190.0,59189.0,0.28745146]
[1723897608184,0.37062251,59190.0,59189.0,0.15875208]
[1723897609075,0.37962251,59190.0,59189.0,0.15975208]
[1723897610491,0.39262251,59190.0,59189.0,0.16075208]
[1723897610691,0.03182251,59190.0,59189.0,0.08639264]
[1723897610892,0.03182251,59190.0,59189.0,0.20504831]
[1723897612693,0.03182251,59190.0,59189.0,0.0763581]
[1723897612891,0.03182251,59190.0,59189.0,0.20503919]
[1723897614596,0.03182251,59190.0,59189.0,0.16786014]
[1723897614797,0.03182251,59190.0,59189.0,0.20503657]
[1723897615191,0.03182251,59190.0,59189.0,0.20503395]
[1723897616206,0.03182251,59190.0,59189.0,0.28932956]
[1723897616704,0.03182251,59190.0,59189.0,0.20503395]
[1723897617299,0.03182251,59190.0,59189.0,0.07635286]
[1723897617499,0.03182251,59190.0,59189.0,0.28932286]
[1723897617905,0.03182251,59190.0,59189.0,0.28932297]
[1723897618900,0.03182251,59190.0,59189.0,0.25214653]
[1723897619106,0.03182251,59190.0,59189.0,0.16064255]
[1723897619497,0.03182251,59190.0,59189.0,0.28932496]
[1723897620100,0.04182251,59190.0,59189.0,0.28932496]
[1723897620907,0.04182251,59190.0,59189.0,0.28932438]
[1723897621300,0.03182251,59190.0,59189.0,0.28932438]
[1723897621805,0.03182251,59190.0,59189.0,0.28932428]
[1723897622412,0.03182251,59190.0,59189.0,0.20503479]
[1723897625905,0.03182251,59190.0,59189.0,0.16785831]
[1723897626096,0.03182251,59190.0,59189.0,0.20503445]
[1723897626304,0.03182251,59190.0,59189.0,0.29843445]
[1723897630319,0.03182251,59190.0,59189.0,0.22408183]
[1723897630504,0.03182251,59190.0,59189.0,0.29843289]
[1723897634220,0.03182251,59190.0,59189.0,0.39962703]
[1723897634718,0.03182251,59190.0,59189.0,0.39962257]
[1723897635608,0.022,59190.0,59189.0,0.39962257]
[1723897637215,0.022,59190.0,59189.0,0.29842843]
[1723897637913,0.022,59190.0,59189.0,0.39963453]
[1723897638109,0.121,59190.0,59189.0,0.1678529]
[1723897638315,0.2555,59190.0,59189.0,0.13067737]
[1723897638507,0.2555,59190.0,59189.0,0.22407737]
[1723897638716,0.2555,59190.0,59189.0,0.30844215]
[1723897639421,0.2555,59190.0,59189.0,0.30844433]
[1723897639619,0.2555,59190.0,59189.0,0.22407737]
[1723897640211,0.6163,59190.0,59189.0,0.30844013]
[1723897640411,0.6163,59190.0,59189.0,0.22407737]
[1723897641119,0.6163,59190.0,59189.0,0.30843986]
[1723897641622,0.6163,59190.0,59189.0,0.22407737]
[1723897642207,0.2555,59190.0,59189.0,0.22407737]
[1723897642513,0.6163,59190.0,59189.0,0.34559258]
[1723897642917,0.6163,59190.0,59189.0,0.26125639]
[1723897643508,0.2555,59190.0,59189.0,0.26125639]
[1723897643908,0.2555,59190.0,59189.0,0.26126816]
[1723897644219,0.2555,59190.0,59189.0,0.34559197]
[1723897644920,0.2555,59190.0,59189.0,0.26126816]
[1723897645228,0.2555,59190.0,59189.0,0.29844624]
[1723897647909,0.2555,59190.0,59189.0,0.26126816]
[1723897648111,0.2555,59190.0,59189.0,0.2984466]
[1723897648527,0.2555,59190.0,59189.0,0.29844571]
[1723897648825,0.2555,59190.0,59189.0,0.38276206]
[1723897649025,0.2555,59190.0,59189.0,0.38276194]
[1723897649322,0.2555,59190.0,59189.0,0.29844559]
[1723897649917,0.112,59190.0,59189.0,0.29844559]
[1723897650526,0.012,59190.0,59189.0,0.29844559]
[1723897650722,0.012,59190.0,59189.0,0.36265893]
[1723897651124,0.012,59190.0,59189.0,0.46386503]
[1723897651720,0.012,59190.0,59189.0,0.36265893]
[1723897652121,0.063335,59197.0,59189.0,0.36265893]
[1723897652427,0.163335,59197.0,59196.0,0.0934]
[1723897652931,0.063335,59197.0,59196.0,0.13057511]
[1723897653527,0.0735254,59197.0,59196.0,0.13057511]
[1723897653728,0.0745254,59197.0,59196.0,0.13057511]
[1723897654131,0.0735254,59197.0,59196.0,0.13057511]
[1723897654430,0.0735254,59197.0,59196.0,0.16874967]
[1723897654431,0.0745254,59197.0,59196.0,0.16874967]
[1723897655433,0.0111904,59197.0,59196.0,0.16874967]
[1723897655731,0.0111904,59197.0,59196.0,0.16974967]
[1723897656435,0.0111904,59197.0,59196.0,0.16974948]
[1723897656734,0.001,59197.0,59196.0,0.29842191]
[1723897657039,0.001,59197.0,59196.0,1.01678137]
[1723897657227,0.001,59197.0,59196.0,1.06298137]
[1723897657620,0.001,59197.0,59196.0,1.06297243]
[1723897658327,0.001,59197.0,59196.0,0.96181996]
[1723897658526,0.001,59197.0,59196.0,0.45501996]
[1723897659026,0.001,59197.0,59196.0,0.96181996]
[1723897659227,0.001,59197.0,59196.0,0.39081297]
[1723897659830,0.001,59197.0,59196.0,0.89761297]
[1723897660433,0.001,59197.0,59196.0,0.89760607]
[1723897661340,0.001,59197.0,59196.0,0.85140607]
[1723897661729,0.001,59197.0,59196.0,0.93556069]
[1723897662336,0.001,59197.0,59196.0,0.93556309]
[1723897663337,0.001,59197.0,59196.0,0.8068972]
[1723897663827,0.001,59197.0,59196.0,0.9355448]
[1723897664334,0.001,59197.0,59196.0,0.73253688]
[1723897664536,0.001,59197.0,59196.0,0.3000808]
[1723897666341,0.001,59197.0,59196.0,0.21594392]
[1723897666726,0.001,59197.0,59196.0,0.42874654]
[1723897666940,0.001,59197.0,59196.0,0.21594392]
[1723897666941,0.011,59197.0,59196.0,0.21594392]
[1723897667130,0.011,59197.0,59196.0,0.3000808]
[1723897667335,0.011,59197.0,59196.0,0.21594392]
[1723897667537,0.011,59197.0,59196.0,0.12254392]
[1723897667741,0.011,59197.0,59196.0,0.17877196]
[1723897668043,0.001,59197.0,59196.0,0.42874742]
[1723897668341,0.001,59197.0,59196.0,0.30008162]
[1723897668540,0.001,59197.0,59196.0,0.3000818]
[1723897668741,0.001,59197.0,59196.0,0.42874914]
[1723897668938,0.001,59197.0,59196.0,0.39157668]
[1723897669339,0.001,59197.0,59196.0,0.35440328]
[1723897669942,0.001,59197.0,59196.0,0.2702664]
[1723897671433,0.001,59197.0,59196.0,0.27026367]
[1723897676035,0.001,59197.0,59196.0,0.27026375]
[1723897679537,0.001,59197.0,59196.0,0.37141622]
[1723897681647,0.001,59197.0,59196.0,0.27026375]
[1723897682137,0.001,59197.0,59196.0,0.37131471]
[1723897682442,0.001,59197.0,59196.0,0.27026375]
[1723897683839,0.001,59197.0,59196.0,0.27026508]
[1723897684241,0.001,59197.0,59196.0,0.30743682]
[1723897685245,0.001,59197.0,59196.0,0.46404431]
[1723897685438,0.001,59197.0,59196.0,0.50121614]
[1723897685948,0.001,59197.0,59196.0,0.34460865]
[1723897686340,0.001,59197.0,59196.0,0.50121614]
[1723897686944,0.001,59197.0,59196.0,0.45501614]
[1723897687348,0.001,59197.0,59196.0,0.41784441]
[1723897687643,0.001,59197.0,59196.0,0.45501625]
[1723897688440,0.001,59197.0,59196.0,0.45501642]
[1723897688951,0.011,59197.0,59196.0,0.45501642]
[1723897690242,0.011,59197.0,59196.0,0.29840893]
[1723897690447,0.011,59197.0,59196.0,0.45501646]
[1723897691245,0.011,59197.0,59196.0,0.29840893]
[1723897691548,0.011,59197.0,59196.0,0.16974368]
[1723897691753,0.001,59197.0,59196.0,0.16974368]
[1723897691952,0.001,59197.0,59196.0,0.26054368]
[1723897692156,0.424123,59208.0,59196.0,1.98290313]
[1723897692354,0.424123,59208.0,59207.0,0.0934]
[1723897692654,0.424123,59208.0,59207.0,0.1811273]
[1723897693251,0.424123,59208.0,59207.0,0.13057184]
[1723897693456,0.424123,59208.0,59207.0,0.18108956]
[1723897694051,0.424123,59208.0,59207.0,0.18208956]
[1723897694254,0.424123,59208.0,59207.0,0.18308956]
[1723897694452,0.424123,59208.0,59207.0,0.13257184]
[1723897695258,0.424123,59208.0,59207.0,0.0954]
[1723897695450,0.424123,59208.0,59207.0,0.13256783]
[1723897698154,0.424123,59208.0,59207.0,0.16973562]
[1723897699748,0.424123,59208.0,59207.0,0.16973442]
[1723897699949,0.3608,59208.0,59207.0,0.16973442]
[1723897700254,0.3608,59208.0,59207.0,0.25399352]
[1723897700661,0.37072913,59209.0,59207.0,0.25399352]
[1723897700957,0.37072913,59209.0,59208.0,0.07433442]
[1723897702553,0.37072913,59209.0,59208.0,0.03716721]
[1723897703157,0.37072913,59209.0,59208.0,0.07533346]
[1723897703655,0.37072913,59209.0,59208.0,0.07633346]
[1723897704767,0.3608,59209.0,59208.0,0.07633346]
[1723897705756,0.35552655,59213.0,59208.0,0.07633346]
[1723897705960,0.3608,59209.0,59208.0,0.002]
[1723897706265,0.3608,59209.0,59208.0,0.076333]
[1723897707855,0.3608,59209.0,59208.0,0.07633243]
[1723897708060,0.36577651,59213.0,59208.0,0.07633243]
[1723897708262,0.54577651,59213.0,59212.0,0.0934]
[1723897708557,0.54577651,59213.0,59212.0,0.13056593]
[1723897709164,0.54577651,59213.0,59212.0,0.0934]
[1723897709165,0.90657651,59213.0,59212.0,0.0934]
[1723897709361,0.84325951,59213.0,59212.0,0.13056645]
[1723897709657,0.66325951,59213.0,59212.0,0.13056343]
[1723897710255,0.30245951,59213.0,59212.0,0.13056343]
[1723897710447,0.30245951,59213.0,59212.0,0.16872532]
[1723897710647,0.30245951,59213.0,59212.0,0.13156343]
[1723897710853,0.30245951,59213.0,59212.0,0.03816343]
[1723897710854,0.40245951,59213.0,59212.0,0.03816343]
[1723897711055,0.40245951,59213.0,59212.0,0.10641541]
[1723897711255,0.40245951,59213.0,59212.0,0.002]
[1723897711666,0.40245951,59213.0,59212.0,0.06925198]
[1723897712059,0.76325951,59213.0,59212.0,0.06925198]
[1723897712960,0.40245951,59213.0,59212.0,0.06925198]
[1723897713261,0.76325951,59213.0,59212.0,0.10641737]
[1723897713456,0.76325951,59213.0,59212.0,0.06925198]
[1723897714059,0.76325951,59213.0,59212.0,0.03916376]
[1723897714358,0.76325951,59213.0,59212.0,0.002]
[1723897714662,0.40245951,59213.0,59212.0,0.03916423]
[1723897714855,0.76325951,59213.0,59212.0,0.03916423]
[1723897716063,0.76325951,59213.0,59212.0,0.03916456]
[1723897717861,0.76325951,59213.0,59212.0,0.002]
[1723897718262,0.76325951,59213.0,59212.0,0.03916484]
[1723897718565,0.76325951,59213.0,59212.0,0.03916477]
[1723897719067,0.76325951,59213.0,59212.0,0.002]
[1723897719265,0.76325951,59213.0,59212.0,0.03916493]
[1723897719468,0.76325951,59213.0,59212.0,0.002]
[1723897723869,0.76325951,59213.0,59212.0,0.0862591]
[1723897724071,0.76325951,59213.0,59212.0,0.002]
[1723897725572,0.76325951,59213.0,59212.0,0.0862591]
[1723897725868,0.76325951,59213.0,59212.0,0.0391647]
[1723897731079,0.40245951,59213.0,59212.0,0.0391647]
[1723897731268,0.76325951,59213.0,59212.0,0.0391647]
[1723897731873,0.65300955,59213.0,59212.0,0.25206093]
[1723897732080,0.65300955,59213.0,59212.0,0.20496443]
[1723897732572,0.65300955,59213.0,59212.0,0.26828243]
[1723897732968,0.65300955,59213.0,59212.0,0.27858791]
[1723897733369,0.65300955,59213.0,59212.0,0.20426061]
[1723897733588,0.65300955,59213.0,59212.0,0.27858427]
[1723897735188,0.29220955,59213.0,59212.0,0.44391163]
[1723897735889,0.29220955,59213.0,59212.0,0.44390897]
[1723897736291,0.29220955,59213.0,59212.0,0.44390729]
[1723897737498,0.29220955,59213.0,59212.0,0.34276834]
[1723897738001,0.29220955,59213.0,59212.0,0.95054729]
[1723897739096,0.29220955,59213.0,59212.0,0.89680834]
[1723897739296,0.29220955,59213.0,59212.0,0.99767325]
[1723897739601,0.29220955,59213.0,59212.0,0.99766862]
[1723897739800,0.29220955,59213.0,59212.0,0.89680834]
[1723897740589,0.29220955,59213.0,59212.0,0.39016834]
[1723897741508,0.29220955,59213.0,59212.0,0.49102746]
[1723897742012,0.29220955,59213.0,59212.0,0.39016834]
[1723897742598,0.29220955,59213.0,59212.0,0.39015448]
[1723897742907,0.29220955,59213.0,59212.0,0.546711]
[1723897743301,0.29220955,59213.0,59212.0,0.39015448]
[1723897743706,0.29220955,59213.0,59212.0,0.54671279]
[1723897744410,0.29220955,59213.0,59212.0,0.39015448]
[1723897744799,0.29220955,59213.0,59212.0,0.28880736]
[1723897745002,0.29220955,59213.0,59212.0,0.39015219]
[1723897747306,0.29220955,59213.0,59212.0,0.48355251]
[1723897747710,1e-08,59213.0,59212.0,0.58436883]
[1723897748006,1e-08,59213.0,59212.0,0.53345251]
[1723897748307,1e-08,59213.0,59212.0,0.54182614]
[1723897748691,1e-08,59213.0,59212.0,4.31182614]
[1723897748902,1e-08,59213.0,59212.0,4.31182034]
[1723897749394,1e-08,59213.0,59212.0,4.32942749]
[1723897751905,1e-08,59213.0,59212.0,4.32942311]
[1723897754105,1e-08,59213.0,59212.0,0.55942311]
[1723897756607,1e-08,59213.0,59212.0,0.5594231]
[1723897756803,1e-08,59213.0,59212.0,0.52226468]
[1723897757102,1e-08,59213.0,59212.0,0.55942321]
[1723897758500,1e-08,59213.0,59212.0,0.71597465]
[1723897760808,1e-08,59213.0,59212.0,0.57747489]
[1723897761017,1e-08,59213.0,59212.0,0.71597435]
[1723897761216,1e-08,59213.0,59212.0,0.71597327]
[1723897763614,0.3608,59220.0,59219.0,0.063311]
[1723897763818,0.3608,59220.0,59219.0,0.35964649]
[1723897764001,0.1402,59226.0,59219.0,0.35964649]
[1723897764202,0.33082828,59241.0,59212.0,0.11697911]
[1723897764203,0.063291,59238.0,59223.0,0.3608]
[1723897764505,0.0949,59233.0,59231.0,0.14731525]
[1723897764705,0.0949,59233.0,59232.0,0.16575294]
[1723897764915,0.0949,59233.0,59232.0,0.25915294]
[1723897765106,0.063291,59238.0,59232.0,0.25915294]
[1723897765312,0.063291,59238.0,59233.0,0.24972423]
[1723897765512,0.063291,59238.0,59233.0,0.03715839]
[1723897766906,0.01009512,59236.0,59233.0,0.03715839]
[1723897767313,0.01009512,59236.0,59232.0,0.17737129]
[1723897767521,0.01009512,59236.0,59233.0,0.002]
[1723897768211,0.37089512,59236.0,59233.0,0.002]
[1723897768414,0.3608,59236.0,59233.0,0.12212191]
[1723897768613,0.3608,59236.0,59233.0,0.25071042]
[1723897768815,0.3608,59236.0,59233.0,0.21552191]
[1723897769017,0.3608,59236.0,59233.0,0.17837129]
[1723897769206,0.3608,59236.0,59233.0,0.13155012]
[1723897770216,0.3608,59236.0,59233.0,0.13055012]
[1723897770520,0.3608,59236.0,59233.0,0.13255012]
[1723897771122,0.37091998,59237.0,59233.0,0.13255012]
[1723897771917,0.01011998,59237.0,59233.0,0.13255012]
[1723897772223,0.01011998,59237.0,59233.0,0.0954]
[1723897772422,0.37091998,59237.0,59233.0,0.1325498]
[1723897773216,0.37091998,59237.0,59233.0,0.0954]
[1723897775423,0.01011998,59237.0,59233.0,0.0954]
[1723897775726,0.37091998,59237.0,59233.0,0.0954]
[1723897776116,0.01011998,59237.0,59233.0,0.0954]
[1723897776316,0.37091998,59237.0,59233.0,0.0954]
[1723897777117,0.01011998,59237.0,59233.0,0.0954]
[1723897777311,0.37091998,59237.0,59233.0,0.0954]
[1723897777915,0.01011998,59237.0,59233.0,0.0954]
[1723897778121,0.37091998,59237.0,59233.0,0.0954]
[1723897780227,0.01011998,59237.0,59233.0,0.0954]
[1723897780422,0.37091998,59237.0,59233.0,0.0954]
[1723897780622,0.01011998,59237.0,59233.0,0.0954]
[1723897781125,0.37091998,59237.0,59233.0,0.0954]
[1723897781732,0.01011998,59237.0,59233.0,0.0954]
[1723897782037,0.37091998,59237.0,59233.0,0.0954]
[1723897782623,0.01011998,59237.0,59233.0,0.0954]
[1723897782832,0.37091998,59237.0,59233.0,0.0954]
[1723897785225,0.01011998,59237.0,59233.0,0.0954]
[1723897785424,0.37091998,59237.0,59233.0,0.0954]
[1723897786627,0.37091998,59237.0,59233.0,0.17937129]
[1723897787541,0.37091998,59237.0,59233.0,0.30796121]
[1723897787723,0.37091998,59237.0,59233.0,0.30796115]
[1723897789336,0.37091998,59237.0,59233.0,0.34511091]
[1723897790032,0.01011998,59237.0,59233.0,0.34511091]
[1723897790230,0.37091998,59237.0,59233.0,0.34511091]
[1723897790428,0.37091998,59237.0,59233.0,0.26113962]
[1723897792133,0.01011998,59237.0,59233.0,0.26113962]
[1723897792438,0.3608,59237.0,59233.0,0.26113962]
[1723897792625,0.3608,59237.0,59233.0,0.32443562]
[1723897794028,0.01013697,59238.0,59233.0,0.32443474]
[1723897794236,0.3608,59237.0,59233.0,0.32443474]
[1723897795739,0.01013697,59238.0,59233.0,0.32443474]
[1723897796041,0.3608,59237.0,59233.0,0.32443474]
[1723897796433,0.01013697,59238.0,59233.0,0.32443474]
[1723897796636,0.3608,59237.0,59233.0,0.32443474]
[1723897798746,0.3608,59237.0,59233.0,0.48094839]
[1723897798950,0.3608,59237.0,59233.0,0.4437984]
[1723897799140,0.3608,59237.0,59233.0,0.48094804]
[1723897799341,0.01013697,59238.0,59233.0,0.48094804]
[1723897799654,0.3608,59237.0,59233.0,0.48094804]
[1723897800451,0.3608,59237.0,59233.0,0.4437984]
[1723897800649,0.3608,59237.0,59233.0,0.48094804]
[1723897801755,0.3608,59237.0,59233.0,0.32443406]
[1723897802555,0.3608,59237.0,59233.0,0.16773806]
[1723897802858,0.32391682,59234.0,59233.0,0.26113806]
[1723897803169,0.31391682,59234.0,59233.0,0.26113806]
[1723897803344,0.31391682,59234.0,59233.0,0.2611394]
[1723897804042,0.32391682,59234.0,59233.0,0.2611394]
[1723897804462,0.32391682,59234.0,59233.0,0.36201599]
[1723897804753,0.31391682,59234.0,59233.0,0.2611394]
[1723897807159,0.31391682,59234.0,59233.0,0.22398842]
[1723897807362,0.31391682,59234.0,59233.0,0.41765904]
[1723897808056,0.31391682,59234.0,59233.0,0.2611394]
[1723897808247,0.31391682,59234.0,59233.0,0.29829005]
[1723897808452,0.31391682,59234.0,59233.0,0.45480762]
[1723897808963,0.31391682,59234.0,59233.0,0.29829005]
[1723897809361,0.31391682,59234.0,59233.0,0.48182282]
[1723897809857,0.31391682,59234.0,59233.0,0.92351397]
[1723897810263,0.31391682,59234.0,59233.0,4.73066016]
[1723897810855,0.31391682,59234.0,59233.0,0.96066016]
[1723897811059,0.31391682,59234.0,59233.0,0.94303098]
[1723897811259,0.31391682,59234.0,59233.0,0.96063492]
[1723897813065,0.31391682,59234.0,59233.0,0.59983492]
[1723897813266,0.31391682,59234.0,59233.0,1.02479586]
[1723897813468,0.31391682,59234.0,59233.0,0.64639192]
[1723897813670,0.31391682,59234.0,59233.0,1.0247959]
[1723897815155,0.31391682,59234.0,59233.0,0.80456751]
[1723897815356,0.31391682,59234.0,59233.0,0.96062423]
[1723897815567,0.31391682,59234.0,59233.0,0.67555272]
[1723897815762,0.31391682,59234.0,59233.0,0.96062604]
[1723897817274,0.31391682,59234.0,59233.0,1.0247869]
[1723897818271,0.31391682,59234.0,59233.0,0.94302204]
[1723897819570,0.31391682,59234.0,59233.0,0.90587606]
[1723897819768,0.31391682,59234.0,59233.0,0.94302186]
[1723897824076,0.31391682,59234.0,59233.0,0.9430224]
[1723897824973,0.31391682,59234.0,59233.0,0.96062318]
[1723897825480,0.31391682,59234.0,59233.0,0.86722318]
[1723897825678,0.31391682,59234.0,59233.0,0.96062318]
[1723897827379,0.31391682,59234.0,59233.0,1.02478341]
[1723897828181,0.31391682,59234.0,59233.0,0.90587231]
[1723897828387,0.3608,59257.0,59242.0,0.063286]
[1723897828684,0.157665,59262.0,59253.0,0.063274]
[1723897828880,0.157665,59262.0,59253.0,0.80210096]
[1723897828881,0.01030358,59260.0,59253.0,0.80210096]
[1723897829269,0.0944,59262.0,59253.0,0.80210096]
[1723897829479,0.0944,59262.0,59253.0,0.64604787]
[1723897829782,0.0944,59262.0,59253.0,0.70866338]
[1723897829970,0.0944,59262.0,59253.0,0.80206338]
[1723897830176,0.0944,59262.0,59253.0,0.90261651]
[1723897830379,0.0944,59262.0,59253.0,0.8850151]
[1723897830576,0.3608,59258.0,59253.0,0.4609411]
[1723897830780,0.3608,59258.0,59253.0,0.29624485]
[1723897831082,0.063271,59256.0,59253.0,0.29724485]
[1723897831281,0.063271,59256.0,59253.0,0.26010936]
[1723897831680,0.063271,59256.0,59253.0,0.34390162]
[1723897831881,0.063271,59256.0,59253.0,0.34490162]
[1723897832187,0.063271,59256.0,59253.0,0.26110936]
[1723897834785,0.3608,59258.0,59253.0,0.62190936]
[1723897835286,0.3608,59258.0,59253.0,0.66730936]
[1723897836186,0.3608,59258.0,59253.0,0.62190936]
[1723897836391,0.3608,59258.0,59253.0,0.52850936]
[1723897836576,0.0491,59257.0,59253.0,0.62190936]
[1723897836991,0.0491,59257.0,59253.0,0.49333549]
[1723897837194,0.0491,59257.0,59253.0,0.03913549]
[1723897837495,0.0934,59256.0,59253.0,0.16767495]
[1723897837796,0.0934,59256.0,59253.0,0.12285619]
[1723897837992,0.0947,59257.0,59253.0,0.12285619]
[1723897838695,0.0947,59257.0,59253.0,0.08571815]
[1723897839195,0.0947,59257.0,59253.0,0.002]
[1723897841289,0.0947,59257.0,59253.0,0.0954]
[1723897844897,0.0947,59257.0,59253.0,0.22394333]
[1723897845397,0.0947,59257.0,59253.0,0.0954]
[1723897846196,0.28361503,59254.0,59253.0,0.0954]
[1723897846589,0.27361503,59254.0,59253.0,0.0954]
[1723897847200,0.27361503,59254.0,59253.0,0.002]
[1723897847701,0.27361503,59254.0,59253.0,0.0954]
[1723897849798,0.27361503,59254.0,59253.0,0.22394075]
[1723897850297,0.28361503,59254.0,59253.0,0.22394075]
[1723897850489,0.27361503,59254.0,59253.0,0.22394075]
[1723897851098,0.28361503,59254.0,59253.0,0.22394075]
[1723897851898,1.18989503,59254.0,59253.0,0.002]
[1723897852102,1.18989503,59254.0,59250.0,0.08372441]
[1723897852400,0.063279,59249.0,59248.0,0.05026892]
[1723897852702,0.516679,59249.0,59247.0,0.05026892]
[1723897852905,0.42408,59248.0,59246.0,0.05026892]
[1723897853099,0.0934,59247.0,59246.0,0.05026892]
[1723897853299,0.3034,59247.0,59246.0,0.05026892]
[1723897853514,1.20976,59247.0,59246.0,0.05026892]
[1723897853698,0.80976,59247.0,59244.0,0.06701453]
[1723897853907,0.0493,59246.0,59244.0,0.16041453]
[1723897854396,0.0493,59246.0,59245.0,0.06701453]
[1723897854595,0.0493,59246.0,59244.0,0.0934]
[1723897854992,0.0503,59246.0,59244.0,0.0944]
[1723897855200,0.0503,59246.0,59245.0,0.2122882]
[1723897855400,0.001,59246.0,59245.0,0.57308767]
[1723897855705,0.001,59246.0,59245.0,0.58979679]
[1723897855706,0.002,59246.0,59245.0,0.58979679]
[1723897855901,0.002,59246.0,59245.0,0.52650368]
[1723897856206,0.002,59246.0,59245.0,0.68297603]